[Event "USA-ch Girls 2017"]
[Site "Saint Louis"]
[Date "2017.07.16"]
[Round "8"]
[White "Cervantes Landeiro, Thalia"]
[Black "Yip, Carissa"]
[Result "1-0"]
[ECO "D31"]
[WhiteElo "2032"]
[BlackElo "2261"]
[Annotator "RC"]
[PlyCount "69"]
[EventDate "2017.??.??"]
[EventType "tourn"]
[EventCountry "USA"]
[SourceTitle "playchess.com"]
[Source "ChessBase"]
[SourceQuality "1"]
[TimeControl "40/5400+30:1800+30"]

1. d4 {[%emt 0:00:00]} d5 {[%emt 0:00:09]} 2. c4 {[%emt 0:01:37]} e6 {[%emt 0:00:05]} 3. Nc3 {[%emt 0:00:05]} Bb4 {[%emt 0:00:04]} 4. e3 {[%emt 0:00:36]} Nf6 {[%emt 0:00:09]} 5. cxd5 {[%emt 0:00:10]} exd5 {[%emt 0:00:09]} 6. Bd3 {[%emt 0:00:07]} O-O {[%emt 0:00:29]} 7. Nge2 {[%emt 0:00:05]} b6 {[%emt 0:01:46]} 8. O-O {[%emt 0:00:52]} Ba6 {[%emt 0:00:48]} 9. Bxa6 {[%emt 0:07:32]} Nxa6 {[%emt 0:00:05]} 10. Qd3 {[%emt 0:02:05]} Qc8 {[%emt 0:02:49]} 11. a3 {[%emt 0:01:38]} Be7 {[%emt 0:01:07]} 12. b4 {[%emt 0:01:33]} Rd8 {[%emt 0:14:35]} 13. b5 {[%emt 0:02:21]} Nb8 {[%emt 0:00:08]} 14. a4 {[%emt 0:01:20]} c5 {[%emt 0:02:53]} 15. dxc5 {[%emt 0:03:05]} Bxc5 {[%emt 0:11:02]} 16. Bb2 {[%emt 0:02:06]} Qg4 {[%emt 0:11:52]} 17. h3 {[%emt 0:05:07]} Qg5 {[%emt 0:03:06]} 18. Rad1 {[%emt 0:06:21]} Rd6 {[%emt 0:06:23]} 19. Nf4 {[%emt 0:07:06]} Nbd7 {[%emt 0:09:17]} 20. Ncxd5 {[%emt 0:03:55]} Nxd5 {[%emt 0:02:59]} 21. Nxd5 {[%emt 0:00:20]} Rd8 {[%emt 0:00:49]} 22. Qe4 {[%emt 0:11:45]} Kh8 {[%emt 0:07:07]} 23. Nf4 {[%emt 0:04:09]} Nf6 {[%emt 0:01:19]} 24. Qf3 {[%emt 0:06:15]} h6 {[%emt 0:09:14]} 25. Rxd6 {[%emt 0:01:25]} Rxd6 {[%emt 0:00:01]} 26. Qa8+ {[%emt 0:11:36]} Kh7 {[%emt 0:00:16]} 27. Qxa7 {[%emt 0:01:17]} Kg8 {[%emt 0:02:37]} 28. Qa8+ {[%emt 0:03:46]} Kh7 {[%emt 0:00:03]} 29. Qf3 {[%emt 0:00:09]} Qf5 {[%emt 0:02:28]} 30. Rd1 {[%emt 0:02:52]} g5 {[%emt 0:04:55]} 31. g4 {[%emt 0:05:12]} Qc2 {[%emt 0:03:48]} 32. Rxd6 {[%emt 0:00:25]} Qxb2 {[%emt 0:01:47]} 33. Nd5 {[%emt 0:04:26]} Bxd6 {[%emt 0:01:19]} 34. Nxf6+ {[%emt 0:00:21]} Kh8 {[%emt 0:01:10]} 35. Qa8+ {[%emt 0:01:08]} 1-0

[Event "USA-ch Girls 2017"]
[Site "Saint Louis"]
[Date "2017.07.16"]
[Round "8"]
[White "Wang, Annie"]
[Black "Virkud, Apurva"]
[Result "1-0"]
[ECO "D37"]
[WhiteElo "2023"]
[BlackElo "2213"]
[Annotator "NA"]
[PlyCount "37"]
[EventDate "2017.??.??"]
[EventType "tourn"]
[EventCountry "USA"]
[SourceTitle "playchess.com"]
[Source "ChessBase"]
[SourceQuality "1"]
[TimeControl "40/5400+30:1800+30"]

1. d4 {[%emt 0:00:00]} d5 {[%emt 0:00:06]} 2. c4 {[%emt 0:00:00]} e6 {[%emt 0:00:06]} 3. Nc3 {[%emt 0:00:00]} Be7 {[%emt 0:00:07]} 4. Nf3 {[%emt 0:00:00]} Nf6 {[%emt 0:00:08]} 5. Bf4 {[%emt 0:00:00]} O-O {[%emt 0:00:13]} 6. e3 {[%emt 0:00:08]} c5 {[%emt 0:00:07]} 7. dxc5 {[%emt 0:00:11]} Bxc5 {[%emt 0:00:12]} 8. Qc2 $14 {[%emt 0:00:18] LiveBook: 737 Games} Nc6 {[%emt 0:00:31]} 9. a3 {[%emt 0:00:11]} Qa5 {[%emt 0:00:32]} 10. Rd1 {[%emt 0:00:10]} Be7 {[%emt 0:00:41]} 11. Be2 {[%emt 0:00:13]} a6 {[%emt 0:01:27]} 12. O-O {[%emt 0:03:30]} dxc4 {[%emt 0:01:21]} 13. Bxc4 {[%emt 0:01:02]} h6 {[%emt 0:05:15]} 14. Ne4 {[%emt 0:09:22]} e5 {[%emt 0:06:23]} 15. b4 {[%emt 0:21:39]} Qxa3 {[%emt 0:02:07]} 16. Nxe5 {[%emt 0:00:46]} Nxe5 {[%emt 0:06:14]} 17. Bxe5 {[%emt 0:00:17]} Nxe4 {[%emt 0:02:17]} 18. Qxe4 {[%emt 0:00:14]} Qxb4 {[%emt 0:01:09]} 19. Qg6 1-0

[Event "USA-ch Girls 2017"]
[Site "Saint Louis"]
[Date "2017.07.17"]
[Round "9"]
[White "Yip, Carissa"]
[Black "Nguyen, Emily"]
[Result "1-0"]
[ECO "B43"]
[WhiteElo "2261"]
[BlackElo "2048"]
[Annotator "ChessBase"]
[PlyCount "57"]
[EventDate "2017.??.??"]
[EventType "tourn"]
[EventCountry "USA"]
[SourceTitle "playchess.com"]
[Source "ChessBase"]
[SourceQuality "1"]
[TimeControl "40/5400+30:1800+30"]

1. e4 {[%emt 0:00:00]} c5 {[%emt 0:00:05]} 2. Nf3 {[%emt 0:00:00]} e6 {[%emt 0:00:06]} 3. d4 {[%emt 0:00:00]} cxd4 {[%emt 0:00:07]} 4. Nxd4 {[%emt 0:00:00]} a6 {[%emt 0:00:11]} 5. Nc3 {[%emt 0:00:00]} Qc7 {[%emt 0:00:07]} 6. Bd3 {[%emt 0:00:06]} Nc6 {[%emt 0:00:12]} 7. Be3 {[%emt 0:00:06]} Nf6 {[%emt 0:00:14]} 8. O-O {[%emt 0:00:08]} Nxd4 {[%emt 0:00:16]} 9. Bxd4 {[%emt 0:00:07]} Bc5 {[%emt 0:00:08]} 10. Be2 {[%emt 0:00:54]} e5 {[%emt 0:00:11]} 11. Bxc5 {[%emt 0:00:54]} Qxc5 {[%emt 0:00:07]} 12. a4 {[%emt 0:03:28]} b6 {[%emt 0:05:35]} 13. Qd3 {[%emt 0:03:52]} Bb7 {[%emt 0:02:50]} 14. Rfd1 {[%emt 0:05:59]} O-O {[%emt 0:02:40]} 15. Rab1 {[%emt 0:01:48]} Rac8 {[%emt 0:05:23]} 16. Rd2 {[%emt 0:06:34]} Rfd8 {[%emt 0:04:40]} 17. Nd5 {[%emt 0:12:21]} Nxd5 {[%emt 0:10:54]} 18. exd5 {[%emt 0:00:06]} Qb4 {[%emt 0:11:29]} 19. Qe3 {[%emt 0:02:57]} d6 {[%emt 0:05:00]} 20. c3 {[%emt 0:01:39]} Qb3 {[%emt 0:16:50]} 21. Ra1 {[%emt 0:07:24]} Bxd5 {[%emt 0:07:27]} 22. Ra3 {[%emt 0:00:17]} Qxa3 {[%emt 0:00:07]} 23. bxa3 {[%emt 0:00:04]} Rc5 {[%emt 0:00:19]} 24. Bxa6 {[%emt 0:01:28]} Ra8 {[%emt 0:00:28]} 25. Bb5 {[%emt 0:03:11]} Rac8 {[%emt 0:00:39]} 26. h3 {[%emt 0:00:25]} g6 {[%emt 0:00:30]} 27. Ba6 {[%emt 0:02:41]} R8c7 {[%emt 0:00:26]} 28. Rb2 {[%emt 0:00:13]} Rxc3 {[%emt 0:00:20]} 29. Qxb6 {[%emt 0:00:14]} 1-0

[Event "USA-ch Girls 2017"]
[Site "Saint Louis"]
[Date "2017.07.17"]
[Round "9"]
[White "Eswaran, Ashritha"]
[Black "Cervantes Landeiro, Thalia"]
[Result "0-1"]
[ECO "C47"]
[WhiteElo "2086"]
[BlackElo "2032"]
[Annotator "NA RC"]
[PlyCount "100"]
[EventDate "2017.??.??"]
[EventType "tourn"]
[EventCountry "USA"]
[SourceTitle "playchess.com"]
[Source "ChessBase"]
[SourceQuality "1"]
[TimeControl "40/5400+30:1800+30"]

1. e4 {[%emt 0:00:00]} e5 {[%emt 0:00:02]} 2. Nf3 {[%emt 0:00:00]} Nc6 {[%emt 0:00:05]} 3. Nc3 {[%emt 0:00:03]} Nf6 {[%emt 0:00:18]} 4. d4 {[%emt 0:00:13]} exd4 {[%emt 0:00:16]} 5. Nxd4 {[%emt 0:00:12]} Bb4 {[%emt 0:00:14]} 6. Nxc6 {[%emt 0:00:28]} bxc6 {[%emt 0:00:06]} 7. Bd3 {[%emt 0:00:15]} O-O {[%emt 0:00:25]} 8. O-O {[%emt 0:00:41]} d5 {[%emt 0:00:41]} 9. exd5 {[%emt 0:00:29]} cxd5 {[%emt 0:00:08]} 10. h3 {[%emt 0:00:41] C47: Scotch Four Knights and Four Knights with 4 g3} c6 {[%emt 0:03:21]} 11. Qf3 {[%emt 0:01:13]} Bd6 {[%emt 0:01:06]} (11... Re8 12. Bf4 Qe7 13. a3 Bd6 14. Ne2 c5 15. b3 Be6 16. Bxd6 Qxd6 17. Rad1 Qe7 {1-0 (58) Bacrot,E (2696)-Fressinet,L (2668) Balagna 2017}) 12. Re1 {[%emt 0:01:34]} Be6 {[%emt 0:01:39]} 13. Bf4 {[%emt 0:02:32]} Rb8 {[%emt 0:01:10]} 14. b3 {[%emt 0:03:53]} Bxf4 {[%emt 0:03:53]} 15. Qxf4 {[%emt 0:00:10] [#]} Qa5 $146 {[%emt 0:00:16]} ({Predecessor:} 15... c5 16. Ne2 Rb6 17. c3 Qb8 {½-½ (36) Breder,D (2463)-Prusikin,M (2528) Switzerland 2016}) 16. Ne2 {[%emt 0:03:39]} c5 {[%emt 0:03:43]} 17. a3 {[%emt 0:09:32]} Rbc8 {[%emt 0:04:09]} 18. b4 {[%emt 0:04:08]} Qb6 {[%emt 0:02:54]} 19. bxc5 {[%emt 0:03:41]} Qxc5 {[%emt 0:00:24]} 20. Nd4 {[%emt 0:03:20]} Rfe8 {[%emt 0:09:44]} 21. Re3 {[%emt 0:08:41]} Bd7 {[%emt 0:06:58]} 22. Rae1 {[%emt 0:02:17]} Qa5 {[%emt 0:04:07]} 23. Rxe8+ {[%emt 0:04:04]} Rxe8 {[%emt 0:00:54]} 24. Rxe8+ {[%emt 0:04:38]} Bxe8 {[%emt 0:04:29]} 25. Qe3 {[%emt 0:01:10]} Qb6 {[%emt 0:02:02]} 26. Nf5 {[%emt 0:04:30]} Qxe3 {[%emt 0:00:31]} 27. Nxe3 {[%emt 0:00:22]} g6 {[%emt 0:05:48]} 28. c4 {[%emt 0:10:23]} dxc4 {[%emt 0:01:53]} 29. Bxc4 {[%emt 0:01:09]} Kf8 {[%emt 0:01:06]} 30. Nd5 {[%emt 0:06:39]} Nxd5 {[%emt 0:01:16]} 31. Bxd5 {[%emt 0:00:09]} Ke7 {[%emt 0:01:06]} 32. Kf1 {[%emt 0:00:44]} Kd6 {[%emt 0:00:14]} 33. Bb3 {[%emt 0:00:07]} Kc5 {[%emt 0:00:47]} 34. Ke2 {[%emt 0:00:20]} Kd4 {[%emt 0:00:33]} 35. Kd2 $1 {[%emt 0:00:06]} g5 {[%emt 0:02:10]} 36. Bc2 {[%emt 0:01:43] [#]} (36. g3 $15) 36... h5 $1 {[%emt 0:01:52]} 37. Bf5 {[%emt 0:04:05]} (37. Bb3 $17) 37... h4 {[%emt 0:12:23]} 38. g3 {[%emt 0:03:33]} Bc6 {[%emt 0:03:13]} 39. gxh4 {[%emt 0:04:46]} gxh4 {[%emt 0:00:10]} 40. Bc8 {[%emt 0:00:00]} Ke4 {[%emt 0:01:55]} 41. Ke2 {[%emt 0:04:10]} Bb5+ {[%emt 0:03:34]} 42. Kd2 {[%emt 0:07:46]} (42. Ke1 $142 Kd3 43. Bg4) 42... Kf3 {[%emt 0:07:01]} 43. Ke1 {[%emt 0:00:16]} Kg2 {[%emt 0:00:21]} 44. Bf5 {[%emt 0:02:48]} Bc4 {[%emt 0:00:53]} 45. Bg4 {[%emt 0:02:45]} (45. f4 $142) 45... Be6 {[%emt 0:01:24]} 46. Bh5 {[%emt 0:00:32]} f6 {[%emt 0:04:26]} 47. Ke2 {[%emt 0:07:17]} Bxh3 {[%emt 0:00:39]} 48. Bf3+ {[%emt 0:01:08]} Kg1 {[%emt 0:00:14]} 49. Ke3 {[%emt 0:01:15]} f5 {[%emt 0:01:13]} 50. Kf4 {[%emt 0:02:45]} Bg2 {[%emt 0:00:52]} 0-1

[Event "USA-ch Girls 2017"]
[Site "Saint Louis"]
[Date "2017.07.17"]
[Round "9"]
[White "Ulrich, Rachel J"]
[Black "Wang, Annie"]
[Result "1/2-1/2"]
[ECO "C95"]
[WhiteElo "2049"]
[BlackElo "2023"]
[Annotator "NA RC"]
[PlyCount "162"]
[EventDate "2017.??.??"]
[EventType "tourn"]
[EventCountry "USA"]
[SourceTitle "playchess.com"]
[Source "ChessBase"]
[SourceQuality "1"]
[TimeControl "40/5400+30:1800+30"]

1. e4 {[%emt 0:00:00]} e5 {[%emt 0:00:05]} 2. Nf3 {[%emt 0:00:00]} Nc6 {[%emt 0:00:06]} 3. Bb5 {[%emt 0:00:00]} a6 {[%emt 0:00:08]} 4. Ba4 {[%emt 0:00:00]} Nf6 {[%emt 0:00:09]} 5. O-O {[%emt 0:00:00]} Be7 {[%emt 0:00:08]} 6. Re1 {[%emt 0:00:00]} b5 {[%emt 0:00:11]} 7. Bb3 {[%emt 0:00:00]} d6 {[%emt 0:00:11]} 8. c3 {[%emt 0:00:00]} O-O {[%emt 0:00:10]} 9. h3 {[%emt 0:00:00]} Nb8 {[%emt 0:00:11]} 10. d4 {[%emt 0:00:00]} Nbd7 {[%emt 0:00:10]} 11. Nbd2 {[%emt 0:00:00]} Bb7 {[%emt 0:00:07]} 12. Bc2 {[%emt 0:00:04]} Re8 {[%emt 0:00:10]} 13. Nf1 {[%emt 0:00:06]} Bf8 {[%emt 0:00:07]} 14. Ng3 {[%emt 0:00:03]} g6 {[%emt 0:00:11]} 15. a4 {[%emt 0:00:03]} c5 {[%emt 0:00:13]} 16. d5 {[%emt 0:00:04]} c4 {[%emt 0:00:11]} 17. Bg5 {[%emt 0:00:44]} h6 {[%emt 0:00:10]} 18. Be3 {[%emt 0:00:30]} Nc5 {[%emt 0:00:27]} 19. Qd2 {[%emt 0:00:32]} h5 {[%emt 0:00:09]} 20. Bxc5 {[%emt 0:00:35] C95: Closed Ruy Lopez: Breyer Variation with 10 d4} (20. Bg5 Bg7 21. Rf1 Qc7 22. Bh6 Bh8 23. Ng5 Nh7 24. Nxh7 Kxh7 25. Be3 Qe7 26. f4 exf4 27. Bxf4 Kg8 {1-0 (51) Zherebukh,Y (2605)-Caruana,F (2817) Saint Louis 2017}) 20... dxc5 {[%emt 0:00:10]} 21. Nf1 {[%emt 0:01:30]} Qc7 {[%emt 0:05:20]} 22. Qg5 {[%emt 0:00:54]} Nh7 {[%emt 0:05:53]} 23. Qe3 {[%emt 0:01:48]} Qd6 $146 {[%emt 0:04:00]} ({Predecessor:} 23... Nf6 24. N1d2 Bd6 25. Ra2 Bf8 26. Rea1 Rec8 27. Bd1 Rd8 {1-0 (73) Degerhammar,R (2452)-Contos,V (2438) ICCF email 2012}) 24. Reb1 {[%emt 0:02:32]} Rab8 {[%emt 0:06:46]} 25. N1d2 {[%emt 0:03:42]} Bc8 26. axb5 {[%emt 0:08:20]} axb5 {[%emt 0:04:43]} 27. Ng5 {[%emt 0:05:35]} Nxg5 {[%emt 0:07:46]} 28. Qxg5 {[%emt 0:00:08]} Kh7 {[%emt 0:03:47]} 29. Qe3 {[%emt 0:10:25]} Bh6 {[%emt 0:02:22]} 30. Qe2 {[%emt 0:00:28]} Re7 {[%emt 0:12:05]} 31. b3 {[%emt 0:03:59]} cxb3 {[%emt 0:02:02]} 32. Rxb3 {[%emt 0:00:06]} Reb7 {[%emt 0:04:10]} 33. Nf3 {[%emt 0:02:29]} Bd7 {[%emt 0:06:57]} 34. Rba3 {[%emt 0:03:04]} Qe7 {[%emt 0:05:00]} (34... b4 $5 {[%cal Rb4a3]} 35. Rb3 f6 $11) 35. Ra5 {[%emt 0:06:22]} c4 {[%emt 0:04:17]} 36. Ra8 {[%emt 0:03:57]} Qe8 {[%emt 0:05:41]} 37. Rxb8 {[%emt 0:00:43]} Qxb8 {[%emt 0:02:00]} 38. Qd1 {[%emt 0:00:22]} Bg7 {[%emt 0:10:10]} 39. Ra6 {[%emt 0:05:01]} Ra7 {[%emt 0:04:49]} 40. Qa1 {[%emt 0:00:00]} Rxa6 {[%emt 0:00:18]} 41. Qxa6 {[%emt 0:00:48]} Kg8 {[%emt 0:05:45]} 42. Nd2 {[%emt 0:04:48]} (42. Bd1 $11) 42... Bf8 {[%emt 0:09:25]} 43. Qf6 {[%emt 0:06:21]} Qa8 {[%emt 0:07:01]} 44. Nf3 {[%emt 0:00:36] [#]} ({Avoid the trap} 44. Qxe5 $2 Qa2 $19) 44... Qa1+ $1 {[%emt 0:05:58]} 45. Kh2 {[%emt 0:00:13]} Qxc3 {[%emt 0:00:12]} 46. Ng5 $2 {[%emt 0:01:32]} (46. Bd1 $17 {keeps fighting.} Qb4 47. Nxe5) 46... Be8 {[%emt 0:00:57]} 47. Qd8 {[%emt 0:01:36]} (47. Bd1 {is a better defense.} Qa3 48. Nf3) 47... Qxc2 {[%emt 0:05:06]} 48. Qxe8 {[%emt 0:00:45]} Qxf2 {[%emt 0:00:15]} 49. d6 {[%emt 0:08:57]} Qf4+ {[%emt 0:00:59]} 50. Kh1 {[%emt 0:01:16]} c3 {[%emt 0:01:26]} ({Not} 50... Qxg5 51. d7 $11) 51. d7 {[%emt 0:04:12]} c2 {[%emt 0:01:04]} 52. Qxf8+ {[%emt 0:00:19]} Kxf8 {[%emt 0:00:06]} 53. d8=Q+ {[%emt 0:00:04]} Kg7 {[%emt 0:00:12]} 54. Ne6+ {[%emt 0:00:03]} fxe6 {[%emt 0:00:48]} (54... Kh7 $142 55. Nxf4 c1=Q+ 56. Kh2 Qxf4+ 57. Kh1 Qxe4) 55. Qc7+ {[%emt 0:00:03]} Qf7 {[%emt 0:00:34]} 56. Qxc2 {[%emt 0:00:15]} Qf1+ {[%emt 0:00:31]} 57. Kh2 {[%emt 0:00:04] [#]} Qc4 $1 {[%emt 0:00:14]} 58. Qb2 {[%emt 0:00:49]} Qc5 {[%emt 0:00:42]} ({Don't play} 58... Qxe4 59. Qxb5 Qd5 60. Qe8 $19) 59. Qb3 {[%emt 0:00:39]} Qb6 {[%emt 0:00:45]} 60. Qb4 {[%emt 0:01:23]} Kf7 {[%emt 0:00:32]} 61. Qd2 $2 {[%emt 0:07:49]} (61. Kg3) 61... Qd4 {[%emt 0:01:22]} (61... b4 $142 62. Qd7+ Kf8 63. Qc8+ Ke7) 62. Qc2 {[%emt 0:00:33]} (62. Qa5 $142) 62... Qd6 {[%emt 0:02:15]} 63. Qf2+ {[%emt 0:00:57]} Kg7 {[%emt 0:01:24]} 64. Qa7+ {[%emt 0:00:08]} Kh6 {[%emt 0:00:43]} 65. Qe3+ {[%emt 0:00:49]} g5 {[%emt 0:00:48]} 66. h4 {[%emt 0:03:16]} (66. Qa7 $17) 66... Qe7 {[%emt 0:00:43]} 67. Qc3 {[%emt 0:03:54]} g4 {[%emt 0:01:11]} 68. Qxe5 {[%emt 0:03:28]} Kg6 {[%emt 0:00:01]} 69. Qxb5 Qxh4+ {[%emt 0:00:02]} 70. Kg1 {[%emt 0:01:31]} Qe1+ {[%emt 0:00:04]} 71. Kh2 {[%emt 0:00:05]} Qxe4 {[%emt 0:00:14]} 72. Qe8+ {[%emt 0:00:08]} Kg5 {[%emt 0:00:18]} 73. Qe7+ {[%emt 0:01:18]} Kf4 {[%emt 0:00:10]} 74. Qf6+ {[%emt 0:00:20]} Ke3 {[%emt 0:00:54]} 75. Qc3+ {[%emt 0:00:23]} Ke2 {[%emt 0:00:25]} 76. Qb2+ {[%emt 0:00:30]} Kd3 {[%emt 0:00:35]} 77. Qb3+ {[%emt 0:01:01]} Kd2 {[%emt 0:01:49]} 78. Qa2+ $2 {[%emt 0:00:32]} (78. Qb2+ $11 {and White stays safe.} Qc2 79. Qd4+ Ke1 80. Qe5+ Kd2 81. Qd4+ Ke2 82. Qe5+ Kd2 83. Qd4+) 78... Ke3 {[%emt 0:00:29]} 79. Qa7+ $19 {[%emt 0:01:13]} Kf4 {[%emt 0:00:15]} 80. g3+ {[%emt 0:02:22]} Kf3 {[%emt 0:00:44]} 81. Qf2+ {[%emt 0:00:21]} Kxf2 {[%emt 0:00:16]} 1/2-1/2